[Event "Norwegian Championship 2022"]
[Site "Kongsvinger, Norway"]
[Date "2022.07.11"]
[Round "4"]
[White "Urkedal, Frode Olav Olsen"]
[Black "Vestby-Ellingsen, Mads"]
[Result "1-0"]
[Board "5"]
[TimeControl "40/5400+30:1800+30"]
[WhiteTitle "GM"]
[BlackTitle "IM"]
[WhiteFideId "1506102"]
[BlackFideId "1520857"]
[WhiteElo "2555"]
[BlackElo "2351"]

1. e4 {[%clk 01:30:56]} {[%emt 00:00:03]} e5 {[%clk 01:25:59]} {[%emt
00:05:01]} 2. Nf3 {[%clk 01:29:11]} {[%emt 00:02:16]} Nc6 {[%clk 01:25:22]}
{[%emt 00:01:07]} 3. Bb5 {[%clk 01:29:15]} {[%emt 00:00:26]} a6 {[%clk
01:25:26]} {[%emt 00:00:26]} 4. Ba4 {[%clk 01:29:42]} {[%emt 00:00:04]} Nf6
{[%clk 01:25:07]} {[%emt 00:00:48]} 5. O-O {[%clk 01:29:30]} {[%emt 00:00:42]}
Be7 {[%clk 01:22:39]} {[%emt 00:02:58]} 6. Re1 {[%clk 01:19:12]} {[%emt
00:10:49]} b5 {[%clk 01:22:12]} {[%emt 00:00:56]} 7. Bb3 {[%clk 01:19:39]}
{[%emt 00:00:04]} O-O {[%clk 01:19:16]} {[%emt 00:03:25]} 8. a4 {[%clk
01:18:06]} {[%emt 00:02:04]} Rb8 {[%clk 01:18:48]} {[%emt 00:00:57]} 9. axb5
{[%clk 01:15:55]} {[%emt 00:02:43]} axb5 {[%clk 01:19:04]} {[%emt 00:00:13]} 10.
h3 {[%clk 01:15:19]} {[%emt 00:01:06]} d6 {[%clk 01:17:51]} {[%emt 00:01:43]}
11. c3 {[%clk 01:13:43]} {[%emt 00:02:07]} Bd7 {[%clk 01:12:12]} {[%emt
00:06:10]} 12. d4 {[%clk 01:12:09]} {[%emt 00:02:04]} Ra8 {[%clk 01:09:50]}
{[%emt 00:02:51]} 13. Rxa8 {[%clk 01:11:43]} {[%emt 00:00:57]} Qxa8 {[%clk
01:10:13]} {[%emt 00:00:07]} 14. Bg5 {[%clk 01:07:40]} {[%emt 00:04:32]} Rd8
{[%clk 01:05:54]} {[%emt 00:04:48]} 15. Nbd2 {[%clk 01:04:26]} {[%emt
00:03:46]} Qb8 {[%clk 00:53:21]} {[%emt 00:13:03]} 16. Nf1 {[%clk 01:01:12]}
{[%emt 00:03:44]} b4 {[%clk 00:41:39]} {[%emt 00:12:11]} 17. Bc2 {[%clk
00:47:34]} {[%emt 00:14:09]} bxc3 {[%clk 00:31:26]} {[%emt 00:10:42]} 18. bxc3
{[%clk 00:46:16]} {[%emt 00:01:48]} h6 {[%clk 00:15:56]} {[%emt 00:16:00]} 19.
Bc1 {[%clk 00:37:59]} {[%emt 00:08:46]} Re8 {[%clk 00:13:21]} {[%emt 00:03:04]}
20. Ng3 {[%clk 00:35:25]} {[%emt 00:03:05]} Bf8 {[%clk 00:12:08]} {[%emt
00:01:43]} 21. Nh4 {[%clk 00:34:53]} {[%emt 00:01:03]} Qb6 {[%clk 00:06:16]}
{[%emt 00:06:22]} 22. Nhf5 {[%clk 00:31:38]} {[%emt 00:03:45]} Qa5 {[%clk
00:04:19]} {[%emt 00:02:27]} 23. Bd2 {[%clk 00:27:52]} {[%emt 00:04:16]} Ne7
{[%clk 00:03:50]} {[%emt 00:00:58]} 24. Nxe7+ {[%clk 00:20:18]} {[%emt
00:08:05]} Bxe7 {[%clk 00:04:00]} {[%emt 00:00:19]} 25. Kh2 {[%clk 00:19:57]}
{[%emt 00:00:51]} Bf8 {[%clk 00:03:44]} {[%emt 00:00:45]} 26. Rf1 {[%clk
00:18:29]} {[%emt 00:01:58]} Qa7 {[%clk 00:01:47]} {[%emt 00:02:27]} 27. Be3
{[%clk 00:17:11]} {[%emt 00:01:48]} Bb5 {[%clk 00:02:05]} {[%emt 00:00:12]} 28.
dxe5 {[%clk 00:17:33]} {[%emt 00:00:09]} Qa5 {[%clk 00:01:25]} {[%emt
00:01:09]} 29. exf6 {[%clk 00:17:39]} {[%emt 00:00:24]} Bxf1 {[%clk 00:01:46]}
{[%emt 00:00:08]} 30. fxg7 {[%clk 00:15:08]} {[%emt 00:03:02]} Bxg7 {[%clk
00:02:07]} {[%emt 00:00:08]} 31. Qxf1 {[%clk 00:15:03]} {[%emt 00:00:36]} Qxc3
{[%clk 00:02:17]} {[%emt 00:00:20]} 32. Qd1 {[%clk 00:14:25]} {[%emt 00:01:08]}
Kh8 {[%clk 00:00:38]} {[%emt 00:02:09]} 33. Nf5 {[%clk 00:14:18]} {[%emt
00:00:37]} Be5+ {[%clk 00:00:41]} {[%emt 00:00:28]} 34. f4 {[%clk 00:14:04]}
{[%emt 00:00:43]} Bg7 {[%clk 00:00:53]} {[%emt 00:00:18]} 35. Nxg7 {[%clk
00:11:49]} {[%emt 00:02:46]} Qxg7 {[%clk 00:00:48]} {[%emt 00:00:35]} 36. Bd4
{[%clk 00:11:34]} {[%emt 00:00:45]} f6 {[%clk 00:01:11]} {[%emt 00:00:06]} 37.
Qh5 {[%clk 00:11:13]} {[%emt 00:00:52]} Ra8 {[%clk 00:00:32]} {[%emt 00:01:09]}
38. Qf5 {[%clk 00:11:05]} {[%emt 00:00:37]} Rf8 {[%clk 00:00:33]} {[%emt
00:00:28]} 39. g4 {[%clk 00:11:17]} {[%emt 00:00:19]} c5 {[%clk 00:00:34]}
{[%emt 00:00:29]} 40. Bc3 {[%clk 00:41:41]} {[%emt 00:00:06]} d5 {[%clk
00:30:32]} {[%emt 00:00:34]} 41. exd5 {[%clk 00:41:00]} {[%emt 00:01:11]} Qe7
{[%clk 00:29:59]} {[%emt 00:01:02]} 42. Be4 {[%clk 00:40:19]} {[%emt 00:01:11]}
c4 {[%clk 00:29:44]} {[%emt 00:00:45]} 43. d6 {[%clk 00:40:04]} {[%emt
00:00:45]} 1-0

[Event "Norwegian Championship 2022"]
[Site "Kongsvinger, Norway"]
[Date "2022.07.11"]
[Round "4"]
[White "Tallaksen, Levi André"]
[Black "Sjøberg, Isak"]
[Result "1-0"]
[Board "6"]
[TimeControl "40/5400+30:1800+30"]
[WhiteTitle "FM"]
[BlackTitle "FM"]
[WhiteFideId "1505785"]
[BlackFideId "1521640"]
[WhiteElo "2341"]
[BlackElo "2308"]

1. d4 {[%clk 01:30:56]} {[%emt 00:00:03]} Nf6 {[%clk 01:30:46]} {[%emt
00:00:13]} 2. c4 {[%clk 01:31:17]} {[%emt 00:00:10]} g6 {[%clk 01:31:11]}
{[%emt 00:00:06]} 3. Nc3 {[%clk 01:31:36]} {[%emt 00:00:11]} Bg7 {[%clk
01:31:36]} {[%emt 00:00:05]} 4. e4 {[%clk 01:31:47]} {[%emt 00:00:18]} d6
{[%clk 01:31:55]} {[%emt 00:00:12]} 5. f4 {[%clk 01:31:51]} {[%emt 00:00:26]}
O-O {[%clk 01:27:16]} {[%emt 00:05:09]} 6. Nf3 {[%clk 01:31:56]} {[%emt
00:00:25]} c5 {[%clk 01:27:10]} {[%emt 00:00:36]} 7. d5 {[%clk 01:31:42]}
{[%emt 00:00:44]} e6 {[%clk 01:27:23]} {[%emt 00:00:16]} 8. Bd3 {[%clk
01:30:52]} {[%emt 00:01:22]} exd5 {[%clk 01:27:46]} {[%emt 00:00:08]} 9. cxd5
{[%clk 01:31:13]} {[%emt 00:00:09]} b5 {[%clk 01:27:50]} {[%emt 00:00:26]} 10.
e5 {[%clk 01:25:12]} {[%emt 00:06:31]} dxe5 {[%clk 01:27:27]} {[%emt 00:00:53]}
11. fxe5 {[%clk 01:25:35]} {[%emt 00:00:07]} Ng4 {[%clk 01:27:51]} {[%emt
00:00:07]} 12. Bxb5 {[%clk 01:25:56]} {[%emt 00:00:09]} Nxe5 {[%clk 01:28:07]}
{[%emt 00:00:13]} 13. O-O {[%clk 01:26:15]} {[%emt 00:00:11]} Bg4 {[%clk
01:28:34]} {[%emt 00:00:04]} 14. Be2 {[%clk 01:18:51]} {[%emt 00:07:55]} Bxf3
{[%clk 01:27:28]} {[%emt 00:01:35]} 15. Bxf3 {[%clk 01:19:09]} {[%emt
00:00:11]} Nbd7 {[%clk 01:27:32]} {[%emt 00:00:26]} 16. Bf4 {[%clk 01:18:11]}
{[%emt 00:01:28]} Nc4 {[%clk 01:11:24]} {[%emt 00:16:37]} 17. Qc2 {[%clk
01:05:26]} {[%emt 00:13:17]} Nde5 {[%clk 00:52:53]} {[%emt 00:19:00]} 18. Rad1
{[%clk 00:59:12]} {[%emt 00:06:43]} g5 {[%clk 00:46:14]} {[%emt 00:07:10]} 19.
Bc1 {[%clk 00:42:26]} {[%emt 00:17:16]} f5 {[%clk 00:43:15]} {[%emt 00:03:27]}
20. Na4 {[%clk 00:41:55]} {[%emt 00:01:02]} Rc8 {[%clk 00:34:13]} {[%emt
00:09:32]} 21. Be2 {[%clk 00:34:28]} {[%emt 00:07:57]} Nd6 {[%clk 00:32:17]}
{[%emt 00:02:25]} 22. Be3 {[%clk 00:33:23]} {[%emt 00:01:36]} c4 {[%clk
00:15:38]} {[%emt 00:17:09]} 23. Bxa7 {[%clk 00:26:05]} {[%emt 00:07:48]} f4
{[%clk 00:15:18]} {[%emt 00:00:51]} 24. Nc3 {[%clk 00:25:23]} {[%emt 00:01:11]}
g4 {[%clk 00:14:48]} {[%emt 00:01:01]} 25. Rde1 {[%clk 00:20:59]} {[%emt
00:04:54]} Qd7 {[%clk 00:11:38]} {[%emt 00:03:39]} 26. Bf2 {[%clk 00:20:11]}
{[%emt 00:01:18]} f3 {[%clk 00:11:16]} {[%emt 00:00:53]} 27. Bd1 {[%clk
00:20:31]} {[%emt 00:00:10]} Nd3 {[%clk 00:11:28]} {[%emt 00:00:18]} 28. Re6
{[%clk 00:15:18]} {[%emt 00:05:43]} Nf4 {[%clk 00:11:02]} {[%emt 00:00:56]} 29.
gxf3 {[%clk 00:14:24]} {[%emt 00:01:24]} Nxd5 {[%clk 00:09:39]} {[%emt
00:01:52]} 30. Rfe1 {[%clk 00:12:57]} {[%emt 00:01:57]} Nf4 {[%clk 00:08:20]}
{[%emt 00:01:49]} 31. Re7 {[%clk 00:12:44]} {[%emt 00:00:43]} Nh3+ {[%clk
00:08:26]} {[%emt 00:00:24]} 32. Kf1 {[%clk 00:10:50]} {[%emt 00:02:24]} Qc6
{[%clk 00:08:50]} {[%emt 00:00:06]} 33. R1e6 {[%clk 00:06:58]} {[%emt
00:04:23]} Ng5 {[%clk 00:07:38]} {[%emt 00:01:43]} 34. Rxg7+ {[%clk 00:04:33]}
{[%emt 00:02:54]} Kxg7 {[%clk 00:07:46]} {[%emt 00:00:22]} 35. Bd4+ {[%clk
00:04:58]} {[%emt 00:00:05]} Kf7 {[%clk 00:07:17]} {[%emt 00:00:59]} 36. Rf6+
{[%clk 00:05:21]} {[%emt 00:00:07]} Ke7 {[%clk 00:06:32]} {[%emt 00:01:15]} 37.
Qe2+ {[%clk 00:05:44]} {[%emt 00:00:06]} Kd7 {[%clk 00:06:16]} {[%emt
00:00:47]} 38. Ba4 {[%clk 00:05:50]} {[%emt 00:00:24]} 1-0

[Event "Norwegian Championship 2022"]
[Site "Kongsvinger, Norway"]
[Date "2022.07.11"]
[Round "4"]
[White "Stanford, Maxim Barth"]
[Black " Østenstad, Berge"]
[Result "1-0"]
[Board "7"]
[TimeControl "40/5400+30:1800+30"]
[WhiteTitle "IM"]
[BlackTitle "GM"]
[WhiteFideId "408280"]
[BlackFideId "1500058"]
[WhiteElo "2308"]
[BlackElo "2451"]

1. d4 {[%clk 01:30:46]} {[%emt 00:00:11]} Nf6 {[%clk 01:30:54]} {[%emt
00:00:09]} 2. c4 {[%clk 01:31:04]} {[%emt 00:00:13]} e6 {[%clk 01:31:10]}
{[%emt 00:00:14]} 3. Nc3 {[%clk 01:31:20]} {[%emt 00:00:14]} d5 {[%clk
01:28:42]} {[%emt 00:02:59]} 4. cxd5 {[%clk 01:30:57]} {[%emt 00:00:53]} exd5
{[%clk 01:29:08]} {[%emt 00:00:04]} 5. Bg5 {[%clk 01:31:20]} {[%emt 00:00:06]}
c6 {[%clk 01:29:08]} {[%emt 00:00:31]} 6. Qc2 {[%clk 01:31:25]} {[%emt
00:00:24]} Be7 {[%clk 01:29:29]} {[%emt 00:00:10]} 7. e3 {[%clk 01:31:49]}
{[%emt 00:00:05]} Nbd7 {[%clk 01:27:20]} {[%emt 00:02:39]} 8. Bd3 {[%clk
01:29:57]} {[%emt 00:02:23]} h6 {[%clk 01:26:02]} {[%emt 00:01:47]} 9. Bh4
{[%clk 01:28:47]} {[%emt 00:01:39]} Nh5 {[%clk 01:26:03]} {[%emt 00:00:29]} 10.
Bxe7 {[%clk 01:28:40]} {[%emt 00:00:38]} Qxe7 {[%clk 01:26:25]} {[%emt
00:00:08]} 11. Nge2 {[%clk 01:28:06]} {[%emt 00:01:03]} Nb6 {[%clk 01:25:47]}
{[%emt 00:01:08]} 12. O-O {[%clk 01:21:39]} {[%emt 00:06:58]} O-O {[%clk
01:24:58]} {[%emt 00:01:18]} 13. b3 {[%clk 01:17:16]} {[%emt 00:04:53]} Bd7
{[%clk 01:23:09]} {[%emt 00:02:19]} 14. Rfe1 {[%clk 01:15:07]} {[%emt
00:02:39]} Rfe8 {[%clk 01:21:20]} {[%emt 00:02:19]} 15. Qd2 {[%clk 01:08:58]}
{[%emt 00:06:39]} Rad8 {[%clk 01:15:00]} {[%emt 00:06:50]} 16. Rac1 {[%clk
01:05:18]} {[%emt 00:04:11]} Qg5 {[%clk 01:04:14]} {[%emt 00:11:15]} 17. a4
{[%clk 01:01:35]} {[%emt 00:04:14]} Nc8 {[%clk 00:57:58]} {[%emt 00:06:43]} 18.
b4 {[%clk 00:59:47]} {[%emt 00:02:21]} Nd6 {[%clk 00:53:11]} {[%emt 00:05:16]}
19. b5 {[%clk 00:56:51]} {[%emt 00:03:27]} Bh3 {[%clk 00:34:56]} {[%emt
00:18:44]} 20. Ng3 {[%clk 00:55:19]} {[%emt 00:02:03]} Nxg3 {[%clk 00:35:11]}
{[%emt 00:00:15]} 21. hxg3 {[%clk 00:55:01]} {[%emt 00:00:48]} Bf5 {[%clk
00:35:31]} {[%emt 00:00:09]} 22. bxc6 {[%clk 00:52:51]} {[%emt 00:02:40]} bxc6
{[%clk 00:35:17]} {[%emt 00:00:45]} 23. Nb1 {[%clk 00:50:12]} {[%emt 00:03:09]}
Bxd3 {[%clk 00:31:12]} {[%emt 00:04:35]} 24. Qxd3 {[%clk 00:50:33]} {[%emt
00:00:09]} Nc4 {[%clk 00:31:33]} {[%emt 00:00:08]} 25. Nd2 {[%clk 00:48:18]}
{[%emt 00:02:46]} Nxd2 {[%clk 00:31:51]} {[%emt 00:00:12]} 26. Qxd2 {[%clk
00:48:44]} {[%emt 00:00:04]} Re6 {[%clk 00:32:14]} {[%emt 00:00:07]} 27. Qa5
{[%clk 00:47:56]} {[%emt 00:01:18]} Rd7 {[%clk 00:31:06]} {[%emt 00:01:33]} 28.
Qa6 {[%clk 00:46:21]} {[%emt 00:02:10]} Rc7 {[%clk 00:30:26]} {[%emt 00:01:09]}
29. Rc5 {[%clk 00:45:48]} {[%emt 00:01:04]} h5 {[%clk 00:28:34]} {[%emt
00:02:21]} 30. Rb1 {[%clk 00:39:55]} {[%emt 00:06:24]} Qf5 {[%clk 00:17:26]}
{[%emt 00:11:38]} 31. Rb8+ {[%clk 00:35:51]} {[%emt 00:04:34]} Kh7 {[%clk
00:17:47]} {[%emt 00:00:08]} 32. Qe2 {[%clk 00:35:41]} {[%emt 00:00:41]} g6
{[%clk 00:14:09]} {[%emt 00:04:07]} 33. a5 {[%clk 00:33:05]} {[%emt 00:03:06]}
Rce7 {[%clk 00:07:04]} {[%emt 00:07:35]} 34. Rc1 {[%clk 00:30:33]} {[%emt
00:03:02]} Qg5 {[%clk 00:05:50]} {[%emt 00:01:45]} 35. a6 {[%clk 00:28:20]}
{[%emt 00:02:44]} h4 {[%clk 00:02:45]} {[%emt 00:03:36]} 36. gxh4 {[%clk
00:25:56]} {[%emt 00:02:54]} Qxh4 {[%clk 00:03:09]} {[%emt 00:00:05]} 37. Qf3
{[%clk 00:24:22]} {[%emt 00:02:03]} c5 {[%clk 00:03:09]} {[%emt 00:00:30]} 38.
Qxd5 {[%clk 00:19:23]} {[%emt 00:05:28]} cxd4 {[%clk 00:01:09]} {[%emt
00:02:31]} 39. Qd8 {[%clk 00:19:24]} {[%emt 00:00:28]} Kg7 {[%clk 00:01:23]}
{[%emt 00:00:16]} 40. g3 {[%clk 00:49:03]} {[%emt 00:00:51]} Qh5 {[%clk
00:31:10]} {[%emt 00:00:43]} 41. Qxd4+ {[%clk 00:46:44]} {[%emt 00:02:49]} Qe5
{[%clk 00:31:09]} {[%emt 00:00:31]} 42. Rb7 {[%clk 00:41:55]} {[%emt 00:05:19]}
Qxd4 {[%clk 00:27:17]} {[%emt 00:04:22]} 43. exd4 {[%clk 00:41:45]} {[%emt
00:00:40]} Kf6 {[%clk 00:20:49]} {[%emt 00:06:57]} 44. Rc3 {[%clk 00:33:09]}
{[%emt 00:09:06]} Rxb7 {[%clk 00:07:18]} {[%emt 00:14:02]} 45. axb7 {[%clk
00:33:32]} {[%emt 00:00:07]} Re1+ {[%clk 00:07:47]} {[%emt 00:00:01]} 46. Kg2
{[%clk 00:33:54]} {[%emt 00:00:08]} Rb1 {[%clk 00:08:14]} {[%emt 00:00:03]} 47.
Rc6+ {[%clk 00:33:55]} {[%emt 00:00:29]} Kf5 {[%clk 00:08:04]} {[%emt
00:00:39]} 48. Rc7 {[%clk 00:32:56]} {[%emt 00:01:31]} f6 {[%clk 00:08:11]}
{[%emt 00:00:22]} 49. Re7 {[%clk 00:32:37]} {[%emt 00:00:48]} 1-0

[Event "Norwegian Championship 2022"]
[Site "Kongsvinger, Norway"]
[Date "2022.07.12"]
[Round "5"]
[White "Agdestein, Simen"]
[Black "Urkedal, Frode Olav Olsen"]
[Result "1-0"]
[Board "1"]
[TimeControl "40/5400+30:1800+30"]
[WhiteTitle "GM"]
[BlackTitle "GM"]
[WhiteFideId "1500015"]
[BlackFideId "1506102"]
[WhiteElo "2559"]
[BlackElo "2555"]

1. e4 {[%emt 00:00:03]} e5 {[%emt 00:00:10]} 2. Nf3 {[%clk 01:31:24]} Nc6
{[%clk 01:31:19]} {[%emt 00:00:07]} 3. Bb5 a6 {[%emt 00:00:32]} 4. Ba4 {[%clk
01:32:17]} {[%emt 00:00:01]} Nf6 {[%emt 00:00:16]} 5. O-O {[%clk 01:32:40]} Be7
{[%emt 00:00:38]} 6. Re1 {[%clk 01:32:24]} {[%emt 00:00:27]} b5 {[%clk
01:32:09]} 7. Bb3 {[%clk 01:32:51]} {[%emt 00:00:15]} O-O {[%emt 00:00:13]} 8.
c3 {[%clk 01:33:08]} {[%emt 00:00:09]} d5 {[%clk 01:32:32]} 9. exd5 {[%emt
00:00:40]} Nxd5 {[%clk 01:32:56]} {[%emt 00:00:04]} 10. Nxe5 {[%clk 01:33:55]}
{[%emt 00:00:04]} Nxe5 {[%clk 01:33:40]} 11. Rxe5 c6 {[%emt 00:00:24]} 12. d3
{[%clk 01:33:33]} {[%emt 00:00:57]} Bd6 {[%clk 01:33:45]} {[%emt 00:00:24]} 13.
Re1 {[%clk 01:33:55]} Bf5 {[%clk 01:30:51]} {[%emt 00:03:33]} 14. Qf3 {[%clk
01:33:21]} Qh4 {[%clk 01:24:27]} {[%emt 00:07:58]} 15. g3 {[%clk 01:33:44]}
{[%emt 00:00:07]} Qh3 {[%emt 00:00:31]} 16. Be3 {[%emt 00:03:42]} Bxd3 {[%emt
00:03:54]} 17. Bxd5 {[%clk 01:33:46]} {[%emt 00:00:12]} cxd5 {[%clk 01:18:31]}
{[%emt 00:00:05]} 18. Qxd5 {[%emt 00:03:03]} Rad8 {[%clk 01:15:52]} {[%emt
00:00:09]} 19. Qg2 {[%emt 00:06:32]} Qe6 {[%emt 00:03:10]} 20. Nd2 {[%clk
01:29:00]} {[%emt 00:03:35]} Rfe8 {[%clk 01:09:23]} {[%emt 00:00:26]} 21. Qc6
{[%clk 01:17:19]} {[%emt 00:12:11]} Qc8 {[%clk 00:50:48]} {[%emt 00:19:05]} 22.
Qxc8 {[%clk 01:14:52]} {[%emt 00:02:58]} Rxc8 {[%clk 00:50:56]} {[%emt
00:00:22]} 23. Bd4 {[%clk 01:11:07]} {[%emt 00:04:15]} Rxe1+ {[%clk 00:46:50]}
{[%emt 00:04:36]} 24. Rxe1 {[%clk 01:11:35]} {[%emt 00:00:02]} b4 {[%clk
00:39:20]} {[%emt 00:08:00]} 25. Re3 {[%clk 01:04:57]} {[%emt 00:07:07]} Bb5
{[%clk 00:39:00]} {[%emt 00:00:50]} 26. Ne4 {[%clk 01:01:29]} {[%emt 00:03:58]}
Bf8 {[%clk 00:37:30]} {[%emt 00:02:00]} 27. g4 {[%clk 00:59:06]} {[%emt
00:02:54]} f6 {[%clk 00:33:12]} {[%emt 00:04:47]} 28. f3 {[%clk 00:52:34]}
{[%emt 00:07:03]} a5 {[%clk 00:31:08]} {[%emt 00:02:34]} 29. b3 {[%clk
00:49:57]} {[%emt 00:03:07]} Rd8 {[%clk 00:26:58]} {[%emt 00:04:40]} 30. Kf2
{[%clk 00:44:50]} {[%emt 00:05:37]} bxc3 {[%clk 00:11:51]} {[%emt 00:15:37]} 31.
Bxc3 {[%clk 00:44:12]} {[%emt 00:01:08]} Ra8 {[%clk 00:08:52]} {[%emt
00:03:29]} 32. Bd4 {[%clk 00:37:52]} {[%emt 00:06:50]} Ba3 {[%clk 00:01:27]}
{[%emt 00:07:55]} 33. Bc5 {[%clk 00:35:29]} {[%emt 00:02:53]} Bc1 {[%clk
00:01:55]} {[%emt 00:00:02]} 34. Re1 {[%clk 00:32:19]} {[%emt 00:03:40]} Bb2
{[%clk 00:02:18]} {[%emt 00:00:07]} 35. Nd6 {[%clk 00:31:45]} {[%emt 00:01:04]}
Bd3 {[%clk 00:02:42]} {[%emt 00:00:06]} 36. f4 {[%clk 00:26:00]} {[%emt
00:06:14]} h5 {[%clk 00:02:54]} {[%emt 00:00:18]} 37. gxh5 {[%clk 00:23:43]}
{[%emt 00:02:48]} Kh7 {[%clk 00:02:54]} {[%emt 00:00:30]} 38. Ke3 {[%clk
00:21:09]} {[%emt 00:03:03]} Ba6 {[%clk 00:03:08]} {[%emt 00:00:16]} 39. Rb1
{[%clk 00:20:45]} {[%emt 00:00:54]} Bc3 {[%clk 00:03:05]} {[%emt 00:00:33]} 40.
Rc1 {[%clk 00:50:46]} {[%emt 00:00:29]} Bb2 {[%clk 00:32:45]} {[%emt 00:00:49]}
41. Rc2 {[%clk 00:49:24]} {[%emt 00:01:53]} Ba1 {[%clk 00:33:11]} {[%emt
00:00:04]} 42. Bd4 {[%clk 00:48:16]} {[%emt 00:01:38]} Bxd4+ {[%clk 00:31:43]}
{[%emt 00:01:58]} 43. Kxd4 {[%clk 00:48:40]} {[%emt 00:00:06]} Rb8 {[%clk
00:32:11]} {[%emt 00:00:03]} 44. Kc5 {[%clk 00:30:04]} {[%emt 00:19:06]} Rb4
{[%clk 00:32:15]} {[%emt 00:00:26]} 45. f5 {[%clk 00:27:35]} {[%emt 00:02:59]}
Kh6 {[%clk 00:30:38]} {[%emt 00:02:07]} 46. Rg2 {[%clk 00:25:56]} {[%emt
00:02:09]} Bd3 {[%clk 00:29:48]} {[%emt 00:01:19]} 47. Rg6+ {[%clk 00:23:36]}
{[%emt 00:02:49]} Kxh5 {[%clk 00:28:51]} {[%emt 00:01:27]} 48. Rxg7 {[%clk
00:22:20]} {[%emt 00:01:46]} Bb1 {[%clk 00:28:10]} {[%emt 00:01:12]} 49. Ra7
{[%clk 00:21:50]} {[%emt 00:01:01]} 1-0

[Event "Norwegian Championship 2022"]
[Site "Kongsvinger, Norway"]
[Date "2022.07.12"]
[Round "5"]
[White "Kaasen, Tor Fredrik"]
[Black "Hammer, Jon Ludvig"]
[Result "1/2-1/2"]
[Board "2"]
[TimeControl "40/5400+30:1800+30"]
[WhiteTitle "IM"]
[BlackTitle "GM"]
[WhiteFideId "1516647"]
[BlackFideId "1503707"]
[WhiteElo "2433"]
[BlackElo "2638"]

1. e4 {[%clk 01:30:55]} {[%emt 00:00:03]} e5 {[%clk 01:30:53]} {[%emt
00:00:08]} 2. Nf3 {[%clk 01:31:11]} {[%emt 00:00:14]} Nc6 {[%clk 01:31:18]}
{[%emt 00:00:05]} 3. Bb5 {[%clk 01:31:10]} {[%emt 00:00:31]} a6 {[%clk
01:31:46]} {[%emt 00:00:03]} 4. Ba4 {[%clk 01:31:26]} {[%emt 00:00:13]} Nf6
{[%clk 01:32:10]} {[%emt 00:00:06]} 5. O-O {[%clk 01:31:29]} {[%emt 00:00:26]}
Be7 {[%clk 01:32:30]} {[%emt 00:00:11]} 6. d3 {[%clk 01:29:25]} {[%emt
00:02:34]} b5 {[%clk 01:32:03]} {[%emt 00:00:58]} 7. Bb3 {[%clk 01:29:48]}
{[%emt 00:00:06]} d6 {[%clk 01:32:27]} {[%emt 00:00:07]} 8. c3 {[%clk
01:28:53]} {[%emt 00:01:22]} O-O {[%clk 01:25:33]} {[%emt 00:07:25]} 9. h3
{[%clk 01:27:35]} {[%emt 00:01:45]} Bb7 {[%clk 01:17:22]} {[%emt 00:08:46]} 10.
Re1 {[%clk 01:27:05]} {[%emt 00:00:58]} Nb8 {[%clk 01:17:25]} {[%emt 00:00:29]}
11. Nbd2 {[%clk 01:22:45]} {[%emt 00:04:48]} Nbd7 {[%clk 01:17:23]} {[%emt
00:00:33]} 12. Nf1 {[%clk 01:22:11]} {[%emt 00:01:04]} Nc5 {[%clk 01:17:46]}
{[%emt 00:00:07]} 13. Bc2 {[%clk 01:22:27]} {[%emt 00:00:14]} Re8 {[%clk
01:18:12]} {[%emt 00:00:05]} 14. Ng3 {[%clk 01:13:36]} {[%emt 00:09:19]} Bf8
{[%clk 01:18:35]} {[%emt 00:00:08]} 15. b4 {[%clk 01:09:52]} {[%emt 00:04:13]}
Ncd7 {[%clk 01:18:23]} {[%emt 00:00:42]} 16. d4 {[%clk 01:02:42]} {[%emt
00:07:39]} g6 {[%clk 01:15:33]} {[%emt 00:03:21]} 17. d5 {[%clk 00:50:57]}
{[%emt 00:12:13]} c6 {[%clk 01:01:56]} {[%emt 00:14:08]} 18. dxc6 {[%clk
00:49:56]} {[%emt 00:01:31]} Bxc6 {[%clk 01:02:24]} {[%emt 00:00:02]} 19. Bb3
{[%clk 00:45:06]} {[%emt 00:05:20]} Qc7 {[%clk 00:52:17]} {[%emt 00:10:38]} 20.
c4 {[%clk 00:39:56]} {[%emt 00:05:39]} bxc4 {[%clk 00:46:13]} {[%emt 00:06:35]}
21. Bxc4 {[%clk 00:40:08]} {[%emt 00:00:16]} Nb6 {[%clk 00:46:33]} {[%emt
00:00:11]} 22. Bb3 {[%clk 00:38:18]} {[%emt 00:02:18]} d5 {[%clk 00:46:33]}
{[%emt 00:00:32]} 23. exd5 {[%clk 00:35:50]} {[%emt 00:02:57]} Bxd5 {[%clk
00:25:33]} {[%emt 00:21:31]} 1/2-1/2